bitfinex/quotes_SOLUSD_20240726
["timestamp","ask_amount","ask_price","bid_price","bid_amount"]
[1721976316039,0.8039355,177.83,177.74,14.0654]
[1721976316262,12.34,177.81,177.76,14.0632]
[1721976316442,0.8039355,177.83,177.77,29.95022068]
[1721976316443,12.34,177.82,177.77,29.95022068]
[1721976316638,12.34,177.82,177.77,28.8254]
[1721976316844,12.34,177.82,177.78,1.12482188]
[1721976317052,12.34,177.81,177.77,22.1106]
[1721976317468,12.34,177.8,177.77,16.4854]
[1721976317763,12.34,177.79,177.76,5.6255]
[1721976318462,5.624,177.81,177.76,5.6255]
[1721976318673,5.6237,177.82,177.77,5.6252]
[1721976319159,5.624,177.81,177.76,5.6255]
[1721976319852,5.6243,177.8,177.75,19.6897]
[1721976320241,5.624,177.81,177.76,5.6255]
[1721976320448,5.6243,177.8,177.76,5.6255]
[1721976320652,12.34,177.78,177.76,5.6255]
[1721976321882,12.34,177.78,177.75,19.6897]
[1721976324551,0.8039355,177.83,177.73,15.3827]
[1721976324552,12.34,177.76,177.73,15.3827]
[1721976325473,0.8039355,177.83,177.75,5.6255]
[1721976325474,12.34,177.78,177.75,5.6255]
[1721976325775,12.34,177.79,177.75,5.6255]
[1721976326345,0.8039355,177.83,177.77,14.0628]
[1721976326551,12.34,177.82,177.78,1.12475569]
[1721976326843,0.8039355,177.83,177.79,15.154]
[1721976327060,13.1439355,177.83,177.8,1.12474817]
[1721976327450,13.1439355,177.83,177.79,16.27874527]
[1721976327648,0.8039355,177.83,177.8,15.18504725]
[1721976327862,0.8039355,177.83,177.81,5.6237]
[1721976328063,0.8039355,177.83,177.79,27.494]
[1721976328454,0.8039355,177.83,177.8,12.34]
[1721976329273,0.8039355,177.83,177.81,1.12458214]
[1721976329769,0.8039355,177.83,177.82,5.6236]
[1721976330564,0.8039355,177.83,177.82,17.9636]
[1721976330883,0.8039355,177.83,177.82,5.6236]
[1721976332474,0.8039355,177.83,177.82,17.9636]
[1721976332981,0.8039355,177.83,177.82,5.6236]
[1721976333775,24.7414705,177.83,177.82,5.6236]
[1721976334572,24.7414705,177.83,177.81,11.6795]
[1721976334884,37.0814705,177.83,177.81,5.6239]
[1721976335179,37.0814705,177.83,177.82,5.6236]
[1721976336583,37.0814705,177.83,177.81,5.6239]
[1721976336763,36.277535,177.82,177.81,5.6239]
[1721976336959,36.277535,177.82,177.8,19.6845]
[1721976337167,12.34,177.81,177.8,19.6845]
[1721976337369,12.34,177.81,177.8,14.0603]
[1721976338777,23.937535,177.81,177.8,14.0603]
[1721976338978,36.277535,177.81,177.8,14.0603]
[1721976339468,23.937535,177.81,177.8,32.0245]
[1721976339667,56.91357691,177.95,177.8,32.0245]
[1721976339668,2.45122871,177.97,177.87,14.0552]
[1721976339880,12.34,177.92,177.9,5.6211]
[1721976340679,12.34,177.92,177.89,5.6214]
[1721976341089,5.6198,177.94,177.89,5.6214]
[1721976341282,12.34,177.91,177.89,5.6214]
[1721976341486,12.34,177.91,177.88,5.6217]
[1721976341988,12.34,177.91,177.89,5.6214]
[1721976342691,12.34,177.9,177.83,30.5024]
[1721976342985,12.34,177.85,177.83,14.0577]
[1721976343382,12.34,177.84,177.83,14.0577]
[1721976343579,12.34,177.84,177.81,6.1611]
[1721976343779,12.34,177.83,177.81,11.7847]
[1721976343979,12.34,177.83,177.81,6.1611]
[1721976344175,5.6228,177.85,177.81,6.1611]
[1721976344497,5.6224,177.86,177.81,11.785]
[1721976344682,46.4849,177.93,177.81,11.785]
[1721976344683,6.92433169,177.94,177.83,15.1859]
[1721976344883,2.37763814,177.99,177.92,14.0505]
[1721976345187,5.6186,177.98,177.93,5.6198]
[1721976345373,5.6184,177.99,177.93,5.6198]
[1721976345566,6.0539355,178.0,177.93,5.6198]
[1721976345567,5.6186,177.98,177.93,5.6198]
[1721976345786,5.6199,177.94,177.89,14.0535]
[1721976345993,1.30423169,177.98,177.89,14.0535]
[1721976346186,25.93423169,177.97,177.85,14.0563]
[1721976346372,20.0,177.96,177.85,14.0563]
[1721976346567,24.63,177.94,177.85,14.0563]
[1721976346797,21.30423169,177.93,177.84,6.5928]
[1721976346977,1.30423169,177.92,177.84,6.5928]
[1721976347291,5.6211,177.91,177.84,20.6502]
[1721976347493,6.0539355,178.0,177.88,24.63]
[1721976347686,6.0539355,178.0,177.99,5.6182]
[1721976347990,6.0539355,178.0,177.99,12.2263]
[1721976348593,6.0539355,178.0,177.99,6.6081]
[1721976348795,6.0539355,178.0,177.95,5.6192]
[1721976348983,6.0539355,178.0,177.94,20.5875]
[1721976349289,6.0539355,178.0,177.95,5.6195]
[1721976349499,11.6719355,178.0,177.94,20.5875]
[1721976349973,11.6719355,178.0,177.94,26.2072]
[1721976350367,6.0539355,178.0,177.95,5.6194]
[1721976350596,6.92253169,177.99,177.94,20.5875]
[1721976350977,6.0539355,178.0,177.94,20.5875]
[1721976351692,5.6186,177.98,177.94,6.5382]
[1721976352272,5.6186,177.98,177.87,6.041]
[1721976352273,65.0,177.97,177.87,6.041]
[1721976352478,5.6202,177.93,177.87,6.041]
[1721976352995,5.6198,177.94,177.88,5.6217]
[1721976354970,1.30423169,177.96,177.87,6.041]
[1721976355172,25.6189,177.97,177.92,5.6203]
[1721976356085,25.6189,177.97,177.91,5.6207]
[1721976356605,5.6189,177.97,177.92,5.6204]
[1721976356901,24.63,177.93,177.84,4.76469711]
[1721976357200,24.63,177.9,177.84,4.76469711]
[1721976357400,46.30423169,177.89,177.84,4.76469711]
[1721976357598,5.622,177.88,177.84,4.76469711]
[1721976357795,24.63,177.9,177.84,4.76469711]
[1721976358179,5.6215,177.89,177.84,4.76469711]
[1721976359682,5.622,177.88,177.84,4.76469711]
[1721976359878,1.30423169,177.89,177.84,4.76469711]
[1721976360077,5.6227,177.85,177.84,4.76469711]
[1721976360299,5.6249,177.79,177.71,1.12491391]
[1721976360613,5.6256,177.76,177.7,5.6274]
[1721976360813,24.63,177.73,177.55,16.94744812]
[1721976361100,24.63,177.68,177.61,14.0752]
[1721976361594,5.6287,177.66,177.61,14.0752]
[1721976361977,24.63,177.63,177.57,14.0789]
[1721976362179,5.6311,177.59,177.41,0.94978786]
[1721976362380,5.6311,177.59,177.49,14.0849]
[1721976362640,5.6311,177.59,177.53,5.6328]
[1721976362917,27.8,177.62,177.52,14.0825]
[1721976363205,20.0,177.61,177.52,14.0825]
[1721976363376,1.30423169,177.6,177.48,14.0857]
[1721976363586,5.6319,177.56,177.48,14.0857]
[1721976363896,5.6321,177.56,177.48,14.0857]
[1721976364287,5.6322,177.55,177.48,19.7198]
[1721976364604,27.8,177.59,177.49,6.7605527]
[1721976364798,5.6319,177.56,177.5,5.6337]
[1721976364983,5.6314,177.58,177.51,5.6333]
[1721976365312,5.6314,177.58,177.51,1.12634248]
[1721976365611,5.6314,177.58,177.49,1.1263498]
[1721976365902,5.6309,177.6,177.52,5.6331]
[1721976366080,25.6309,177.59,177.52,5.6331]
[1721976366283,5.6306,177.6,177.53,5.6326]
[1721976367312,5.6309,177.59,177.53,5.6326]
[1721976367627,5.6312,177.58,177.51,19.7165]
[1721976367816,5.6312,177.58,177.52,5.6331]
[1721976368113,20.0,177.61,177.53,5.6328]
[1721976368318,21.30423169,177.62,177.53,5.6328]
[1721976368509,21.30423169,177.62,177.51,14.0833]
[1721976370139,20.0,177.62,177.54,14.0805]
[1721976370336,5.63,177.62,177.56,5.6318]
[1721976370490,5.63,177.62,177.55,1.12620195]
[1721976370817,5.6307,177.6,177.54,15.20659383]
[1721976371119,5.6307,177.6,177.54,14.0805]
[1721976371990,5.6307,177.6,177.54,19.7129]
[1721976373201,5.6309,177.59,177.54,19.7129]
[1721976373720,15.37773169,177.64,177.52,5.6329]
[1721976373897,65.0,177.63,177.52,5.6329]
[1721976374098,65.0,177.63,177.5,20.6178]
[1721976374099,5.6316,177.57,177.5,26.2513]
[1721976374315,1.30423169,177.62,177.5,26.2513]
[1721976374498,5.6324,177.55,177.5,20.6178]
[1721976374699,14.076,177.61,177.5,20.6178]
[1721976374918,21.30423169,177.6,177.5,20.6178]
[1721976375301,21.30423169,177.6,177.5,14.0837]
[1721976375502,5.6328,177.54,177.48,5.6344]
[1721976376018,1.30423169,177.6,177.47,5.6347]
[1721976376019,5.6329,177.53,177.47,5.6347]
[1721976376698,14.0798,177.56,177.44,11.7651]
[1721976376919,5.6339,177.5,177.44,11.7651]
[1721976377115,5.6339,177.5,177.45,5.6353]
[1721976377828,5.6334,177.52,177.46,5.635]
[1721976378032,45.0,177.55,177.46,5.635]
[1721976378033,5.6335,177.51,177.46,5.635]
[1721976378229,5.6335,177.51,177.45,5.6353]
[1721976378528,5.6335,177.51,177.45,6.76214921]
[1721976378825,5.6335,177.51,177.45,5.6353]
[1721976380818,5.6338,177.5,177.45,5.6353]
[1721976381018,5.6338,177.5,177.44,25.8545]
[1721976381321,5.6338,177.5,177.45,5.6352]
[1721976381518,5.6334,177.52,177.46,5.6349]
[1721976382314,5.6335,177.51,177.46,5.6349]
[1721976382512,5.6338,177.5,177.44,25.8542]
[1721976382815,5.6334,177.51,177.46,5.635]
[1721976383025,45.0,177.55,177.47,5.6347]
[1721976383204,20.0,177.54,177.48,5.6343]
[1721976383696,25.6328,177.54,177.48,5.6343]
[1721976384017,5.6328,177.54,177.48,5.6343]
[1721976384531,5.6328,177.53,177.48,5.6343]
[1721976386031,5.6323,177.55,177.5,5.6336]
[1721976386537,20.0,177.58,177.49,14.0849]
[1721976386719,60.38383169,177.57,177.46,14.0876]
[1721976386921,5.6334,177.52,177.45,5.635]
[1721976387111,5.6334,177.52,177.46,5.6349]
[1721976387915,5.6334,177.52,177.47,5.6346]
[1721976388237,5.6325,177.54,177.48,5.6343]
[1721976389641,5.6325,177.54,177.49,5.634]
[1721976391221,5.6325,177.54,177.48,5.6343]
[1721976392029,5.6325,177.54,177.49,5.634]
[1721976392235,5.6325,177.54,177.5,1.1265956]
[1721976392930,60.38383169,177.57,177.46,14.0874]
[1721976393132,20.0,177.56,177.46,14.0874]
[1721976393331,5.6328,177.54,177.48,5.6344]
[1721976394138,5.6329,177.53,177.48,5.6344]
[1721976396033,5.6324,177.55,177.49,6.76068044]
[1721976396223,5.6324,177.55,177.49,5.634]
[1721976396939,5.6326,177.54,177.49,5.634]
[1721976397625,20.0,177.56,177.48,14.0854]
[1721976397626,5.6322,177.55,177.5,6.76023044]
[1721976397821,5.6322,177.55,177.5,5.6336]
[1721976398043,26.01423169,177.6,177.5,14.0838]
[1721976398347,5.6315,177.58,177.52,5.6331]
[1721976398636,5.6315,177.58,177.5,14.0838]
[1721976398637,5.6323,177.55,177.5,14.0838]
[1721976398851,5.6319,177.56,177.51,5.6333]
[1721976399243,5.6316,177.57,177.51,5.6333]
[1721976399542,5.6316,177.57,177.52,5.633]
[1721976399740,5.6312,177.59,177.52,14.0823]
[1721976400044,1.30423169,177.6,177.52,14.0823]
[1721976400340,21.30423169,177.6,177.52,14.0823]
[1721976400716,46.01423169,177.6,177.48,14.0853]
[1721976400918,5.6326,177.54,177.48,14.0853]
[1721976401119,1.30423169,177.58,177.5,5.6337]
[1721976401339,21.30423169,177.58,177.5,5.6337]
[1721976401546,1.30423169,177.57,177.5,5.6337]
[1721976401750,5.6325,177.54,177.48,19.7194]
[1721976401948,5.6325,177.54,177.49,5.6339]
[1721976402514,20.0,177.58,177.48,14.0853]
[1721976402740,45.0,177.57,177.48,14.0853]
[1721976403133,5.633,177.53,177.48,19.7194]
[1721976403341,45.0,177.57,177.48,19.7194]
[1721976403545,5.6325,177.54,177.48,19.7194]
[1721976404230,5.6331,177.52,177.46,5.6347]
[1721976404634,1.30423169,177.56,177.47,14.0862]
[1721976404635,5.6327,177.54,177.47,14.0862]
[1721976404953,5.6322,177.56,177.5,5.6337]
[1721976406133,45.0,177.57,177.5,5.6337]
[1721976406334,45.0,177.57,177.47,14.0862]
[1721976406549,5.6328,177.54,177.49,5.634]
[1721976407230,5.6328,177.54,177.48,5.6343]
[1721976407430,5.6328,177.54,177.48,5.6344]
[1721976407951,1.30423169,177.54,177.47,19.7209]
[1721976408329,5.6329,177.53,177.47,19.7209]
[1721976408736,5.6329,177.53,177.48,5.6343]
[1721976409526,6.93673169,177.54,177.48,5.6343]
[1721976409849,5.6319,177.56,177.5,5.6336]
[1721976410147,5.6319,177.56,177.49,14.0846]
[1721976411030,45.0,177.57,177.51,5.6334]
[1721976411246,50.6318,177.57,177.51,5.6334]
[1721976411459,50.6318,177.57,177.52,5.633]
[1721976411852,5.6319,177.56,177.51,5.6334]
[1721976412368,5.6316,177.57,177.52,5.6331]
[1721976412681,1.30423169,177.56,177.51,5.6334]
[1721976412869,6.93613169,177.56,177.51,5.6334]
[1721976413045,406.1315,177.58,177.52,5.6331]
[1721976413244,406.1315,177.58,177.53,5.6327]
[1721976413747,406.1315,177.58,177.52,19.7159]
[1721976413951,5.6315,177.57,177.52,19.7159]
[1721976414151,406.1312,177.58,177.52,19.7159]
[1721976414559,400.5,177.58,177.53,5.6327]
[1721976414868,380.5,177.58,177.53,5.6327]
[1721976415440,386.1313,177.58,177.53,5.6327]
[1721976416061,5.6313,177.58,177.53,5.6327]
[1721976420049,5.631,177.59,177.54,5.6323]
[1721976420268,380.5,177.62,177.55,14.0803]
[1721976420570,65.0,177.61,177.55,14.0803]
[1721976420782,5.6306,177.6,177.55,19.7124]
[1721976421668,5.631,177.59,177.55,14.0803]
[1721976421873,1.30423169,177.6,177.52,19.7155]
[1721976422175,5.6316,177.57,177.52,19.7157]
[1721976423561,5.6312,177.58,177.53,5.6328]
[1721976423766,1.30423169,177.62,177.54,14.0805]
[1721976423951,20.0,177.62,177.54,14.0805]
[1721976424571,396.6685,177.63,177.59,5.6309]
[1721976424780,2.3915188,177.67,177.49,1.1264935]
[1721976424781,5.6284,177.67,177.53,6.3304]
[1721976425086,5.6291,177.65,177.59,5.6308]
[1721976425373,5.6291,177.65,177.6,5.6305]
[1721976425577,5.6287,177.66,177.6,5.6305]
[1721976426358,5.6291,177.65,177.6,5.6305]
[1721976427157,380.5,177.68,177.63,5.6296]
[1721976427668,5.6284,177.67,177.61,5.6302]
[1721976427981,5.6288,177.66,177.61,5.6302]
[1721976428270,26.01423169,177.7,177.63,14.0738]
[1721976428478,26.01423169,177.7,177.57,15.6018]
[1721976428679,5.6284,177.67,177.61,5.63]
[1721976429285,5.6287,177.66,177.59,14.0767]
[1721976429652,5.6283,177.68,177.59,14.0767]
[1721976429982,5.6283,177.68,177.62,5.6298]
[1721976430981,5.6284,177.67,177.62,5.6298]
[1721976431890,66.30423169,177.69,177.6,5.6304]
[1721976432064,5.6287,177.66,177.61,5.6302]
[1721976432464,5.6284,177.67,177.61,5.6302]
[1721976434379,5.6284,177.67,177.62,5.6299]
[1721976435579,5.6284,177.67,177.61,5.6302]
[1721976436575,5.6288,177.66,177.61,5.6302]
[1721976436779,1.30423169,177.67,177.59,14.0767]
[1721976436972,5.63,177.62,177.56,14.0796]
[1721976437278,1.30423169,177.67,177.57,5.6315]
[1721976437279,26.01423169,177.67,177.57,5.6315]
[1721976437464,20.0,177.66,177.56,14.0796]
[1721976437669,46.30423169,177.65,177.56,14.0796]
[1721976437977,21.30423169,177.64,177.56,14.0796]
[1721976438180,50.6299,177.63,177.56,19.7114]
[1721976438369,1.30423169,177.62,177.56,19.7114]
[1721976438570,5.6303,177.61,177.56,14.0796]
[1721976438877,1.30423169,177.6,177.56,14.0796]
[1721976439383,5.6303,177.61,177.56,19.7113]
[1721976439883,50.6299,177.63,177.56,14.0796]
[1721976440055,45.0,177.63,177.56,14.0796]
[1721976440261,20.0,177.64,177.53,22.8462]
[1721976440262,30.3387,177.67,177.59,14.0768]
[1721976440469,30.3387,177.67,177.6,5.6303]
[1721976440470,45.0,177.66,177.6,5.6303]
[1721976440675,45.0,177.66,177.59,14.0768]
[1721976442071,5.629,177.65,177.6,5.6305]
[1721976442581,5.6297,177.63,177.58,5.631]
[1721976443488,5.6293,177.64,177.58,5.631]
[1721976444385,5.6297,177.63,177.58,5.631]
[1721976445589,5.6293,177.64,177.58,5.631]
[1721976447275,5.6293,177.64,177.59,5.6309]
[1721976450488,5.6293,177.64,177.58,5.6312]
[1721976451384,5.6293,177.64,177.59,5.6309]
[1721976451565,5.6296,177.63,177.57,5.6312]
[1721976452795,5.6293,177.65,177.59,5.6309]
[1721976453278,1.30423169,177.65,177.56,14.0796]
[1721976454187,12.35,177.62,177.58,5.6311]
[1721976455974,12.35,177.61,177.57,5.6315]
[1721976456788,12.35,177.61,177.53,22.8462]
[1721976456789,12.35,177.58,177.54,5.6323]
[1721976457176,5.6313,177.58,177.53,54.9109]
[1721976457497,12.35,177.58,177.54,5.6324]
[1721976457869,380.5,177.63,177.52,5.6329]
[1721976457870,12.35,177.56,177.52,5.6329]
[1721976458386,12.35,177.56,177.51,17.9834]
[1721976458567,12.35,177.56,177.52,5.633]
[1721976458997,12.35,177.56,177.53,5.6328]
[1721976459493,12.35,177.56,177.52,5.6331]
[1721976461075,12.35,177.56,177.53,5.6328]
[1721976462291,12.35,177.56,177.54,5.6325]
[1721976462794,12.35,177.56,177.53,5.6327]
[1721976464097,12.35,177.57,177.54,5.6325]
[1721976464992,12.35,177.56,177.52,19.715]
[1721976465169,12.35,177.56,177.52,14.0822]
[1721976465598,12.35,177.56,177.53,5.6328]
[1721976466874,12.35,177.56,177.54,5.6324]
[1721976467987,5.631,177.59,177.54,5.6324]
[1721976468299,12.35,177.57,177.54,5.6324]
[1721976468673,12.35,177.57,177.55,5.6321]
[1721976468984,12.35,177.57,177.54,5.6324]
[1721976471796,12.35,177.57,177.53,5.6328]
[1721976474003,12.35,177.57,177.54,5.6324]
[1721976475003,12.35,177.57,177.55,14.0803]
[1721976476196,5.6306,177.61,177.55,32.0625]
[1721976476393,5.6306,177.61,177.56,5.6316]
[1721976476394,12.35,177.61,177.56,5.6316]
[1721976476992,12.35,177.61,177.57,5.6314]
[1721976477593,17.9803,177.61,177.55,32.0622]
[1721976477803,12.35,177.6,177.55,32.0622]
[1721976478301,12.35,177.59,177.55,19.7122]
[1721976478504,12.35,177.59,177.55,14.0803]
[1721976478683,17.9809,177.59,177.54,5.6325]
[1721976479208,12.35,177.58,177.54,5.6325]
[1721976480495,12.35,177.59,177.55,5.6321]
[1721976481108,17.9806,177.6,177.55,5.6321]
[1721976481311,12.35,177.6,177.56,5.6317]
[1721976482189,12.35,177.6,177.57,5.6315]
[1721976482816,15.7147,177.64,177.56,26.429]
[1721976483126,15.7147,177.64,177.6,5.6305]
[1721976483127,12.35,177.63,177.6,5.6305]
[1721976483789,12.35,177.63,177.59,5.6308]
[1721976485091,396.6891,177.68,177.61,12.35]
[1721976485398,265.42610463,177.75,177.57,22.6426]
[1721976485399,12.35,177.69,177.64,12.35]
[1721976485706,12.35,177.69,177.64,5.6293]
[1721976486607,12.35,177.7,177.66,5.6286]
[1721976487287,401.8467,177.73,177.67,5.6282]
[1721976487485,12.35,177.72,177.68,5.628]
[1721976487907,12.35,177.72,177.69,5.6277]
[1721976488701,12.35,177.72,177.68,5.628]
[1721976489101,12.35,177.71,177.66,26.4216]
[1721976489617,12.35,177.71,177.67,5.6283]
[1721976489815,12.35,177.72,177.67,5.6283]
[1721976490016,386.1265,177.73,177.68,5.628]
[1721976490227,12.35,177.72,177.68,5.628]
[1721976491119,12.35,177.72,177.67,5.6283]
[1721976491293,5.6278,177.69,177.65,6.0962]
[1721976491624,12.35,177.69,177.65,11.7251]
[1721976491917,12.35,177.7,177.65,11.7251]
[1721976492121,12.35,177.7,177.66,5.6286]
[1721976494519,12.35,177.7,177.65,32.5187]
[1721976494697,12.35,177.71,177.67,5.6283]
[1721976495618,12.35,177.7,177.65,25.7974]
[1721976495794,12.35,177.69,177.65,25.7974]
[1721976495996,12.35,177.68,177.65,25.7974]
[1721976496301,12.35,177.69,177.65,25.7974]
[1721976496511,12.35,177.69,177.66,5.6286]
[1721976496819,12.35,177.7,177.66,5.6286]
[1721976497211,12.35,177.7,177.65,20.1687]
[1721976497212,12.35,177.7,177.67,5.6284]
[1721976498715,12.35,177.7,177.66,5.6286]
[1721976498923,17.9774,177.7,177.65,20.1687]
[1721976499222,12.35,177.69,177.65,25.7977]
[1721976500419,12.35,177.69,177.66,5.6286]
[1721976500629,12.35,177.7,177.66,5.6286]
[1721976503508,17.9771,177.71,177.66,17.9786]
[1721976504022,16.2962,177.77,177.7,12.35]
[1721976504213,17.9752,177.77,177.72,5.6265]
[1721976505030,5.6255,177.76,177.71,32.0447]
[1721976505528,380.5,177.8,177.74,12.35]
[1721976505703,398.4745,177.8,177.74,17.9761]
[1721976505896,398.4745,177.8,177.73,14.0661]
[1721976505897,17.9749,177.78,177.73,14.0661]
[1721976506099,380.5,177.8,177.73,14.0661]
[1721976506100,17.9753,177.77,177.73,14.0661]
[1721976506406,17.9755,177.76,177.71,17.977]
[1721976506602,12.35,177.76,177.71,12.35]
[1721976506807,12.35,177.76,177.72,5.6267]
[1721976507922,12.35,177.77,177.73,5.6265]
[1721976508122,12.35,177.78,177.73,12.35]
[1721976508428,16.0255,177.82,177.75,14.0646]
[1721976508429,12.35,177.79,177.75,14.0646]
[1721976508630,12.35,177.79,177.75,19.6904]
[1721976509000,5.6243,177.8,177.75,19.6904]
[1721976509229,12.35,177.79,177.75,19.6904]
[1721976509605,17.9747,177.79,177.75,14.0646]
[1721976509931,12.35,177.78,177.73,17.9762]
[1721976510310,12.35,177.78,177.73,5.6262]
[1721976510516,12.35,177.77,177.73,5.6262]
[1721976512537,12.35,177.75,177.72,14.067]
[1721976512713,12.35,177.75,177.72,19.6938]
[1721976513847,17.9756,177.76,177.72,14.067]
[1721976514131,12.35,177.75,177.72,14.067]
[1721976514310,12.35,177.75,177.73,5.6264]
[1721976514712,12.35,177.76,177.73,5.6264]
[1721976515024,12.35,177.78,177.74,14.0648]
[1721976515630,12.35,177.78,177.75,5.6258]
[1721976515835,12.35,177.78,177.74,14.0648]
[1721976517235,12.35,177.78,177.74,19.6909]
[1721976520817,17.9749,177.78,177.74,19.6909]
[1721976521121,17.9749,177.78,177.74,14.0648]
[1721976521632,12.35,177.77,177.74,14.0648]
[1721976522243,12.35,177.75,177.71,5.627]
[1721976522537,12.35,177.74,177.71,5.627]
[1721976523931,12.35,177.74,177.72,5.6268]
[1721976524332,12.35,177.74,177.71,5.627]
[1721976524844,12.35,177.74,177.72,5.6267]
[1721976525440,12.35,177.75,177.72,5.6267]
[1721976529633,12.35,177.74,177.72,5.6267]
[1721976530229,400.44148493,177.81,177.66,1.12533807]
[1721976530230,386.38088493,177.81,177.66,1.12533807]
[1721976530530,386.38088493,177.81,177.77,5.6251]
[1721976530531,12.35,177.8,177.77,5.6251]
[1721976531257,392.85,177.81,177.78,5.6248]
[1721976531434,12.35,177.81,177.78,5.6248]
[1721976531760,12.35,177.82,177.78,14.062]
[1721976532138,12.35,177.83,177.78,26.412]
[1721976532338,396.1592,177.87,177.81,5.6239]
[1721976532339,12.35,177.84,177.81,5.6239]
[1721976532760,12.35,177.84,177.79,5.6243]
[1721976532941,12.35,177.83,177.8,5.6242]
[1721976533531,12.35,177.82,177.78,19.6866]
[1721976533831,12.35,177.81,177.78,19.6866]
[1721976537556,12.35,177.81,177.79,5.6245]
[1721976537728,12.35,177.82,177.79,5.6245]
[1721976538660,12.35,177.81,177.78,14.062]
[1721976539454,12.35,177.81,177.78,19.6869]
[1721976540263,12.35,177.8,177.78,14.062]
[1721976540435,12.35,177.79,177.78,14.062]
[1721976542462,12.35,177.79,177.75,5.6256]
[1721976542650,12.35,177.78,177.75,5.6256]
[1721976543042,12.35,177.79,177.77,5.6252]
[1721976543451,12.35,177.79,177.78,5.6249]
[1721976543654,12.35,177.8,177.78,5.6249]
[1721976544140,12.35,177.79,177.76,14.0632]
[1721976544357,1.30423169,177.82,177.76,14.0632]
[1721976544358,12.35,177.78,177.76,14.0632]
[1721976545459,12.35,177.78,177.77,5.6252]
[1721976545657,12.35,177.78,177.76,14.0632]
[1721976545857,13.65423169,177.77,177.76,14.0632]
[1721976546179,12.35,177.77,177.73,11.7864]
[1721976546358,12.35,177.75,177.72,19.6932]
[1721976546761,12.35,177.75,177.73,5.6264]
[1721976548279,12.35,177.76,177.74,5.626]
[1721976548480,12.35,177.77,177.75,5.6258]
[1721976549082,12.35,177.77,177.74,5.6261]
[1721976552157,12.35,177.76,177.72,19.6929]
[1721976552869,12.35,177.74,177.71,5.6271]
[1721976553255,12.35,177.74,177.7,5.6271]
[1721976553461,12.35,177.74,177.68,48.1275]
[1721976554367,12.35,177.74,177.69,12.35]
[1721976555293,12.35,177.74,177.7,5.6271]
[1721976555592,13.65423169,177.73,177.68,41.4052]
[1721976555780,12.35,177.72,177.68,41.4052]
[1721976556283,12.35,177.72,177.68,19.6971]
[1721976556487,12.35,177.72,177.69,5.6277]
[1721976556887,12.35,177.7,177.66,5.6287]
[1721976557180,13.65423169,177.71,177.67,5.6283]
[1721976557395,12.35,177.71,177.67,5.6283]
[1721976557572,12.35,177.69,177.67,5.6283]
[1721976557774,12.35,177.69,177.65,5.6288]
[1721976557958,13.65423169,177.69,177.65,5.6288]
[1721976558158,9.70123169,177.69,177.65,5.6288]
[1721976558765,9.70123169,177.69,177.66,5.6286]
[1721976558970,8.397,177.69,177.66,5.6286]
[1721976559369,8.397,177.69,177.67,5.6283]
[1721976562086,13.65423169,177.68,177.64,14.0727]
[1721976562270,12.35,177.66,177.62,5.6296]
[1721976562472,12.35,177.64,177.61,14.0756]
[1721976562665,12.35,177.64,177.62,5.6297]